[Event "Titled Tuesday Blitz November 08 Early 2022"]
[White "Santos Flores, Alberto"]
[Black "Luxama, Jacques Muller"]
[WhiteFideId "3601234"]
[BlackFideId "11900113"]
[WhiteElo "2235"]
[BlackElo "1931"]
[Result "1-0"]
[Round "07"]
[TimeControl "180+1"]
[Date "2022.11.09"]
[WhiteClock "0:00:19"]
[BlackClock "0:00:02"]

1. e4 {[%clk 0:03:00]}  c5 {[%clk 0:02:59]} 2. Nf3 {[%clk 0:03:00]}  d6 {[%clk 0:02:58]} 3. d4 {[%clk 0:03:00]}  cxd4 {[%clk 0:02:59]} 4. Nxd4 {[%clk 0:03:00]}  Nf6 {[%clk 0:02:59]} 5. Nc3 {[%clk 0:03:00]}  a6 {[%clk 0:03:00]} 6. h3 {[%clk 0:02:58]}  e6 {[%clk 0:02:54]} 7. g4 {[%clk 0:02:56]}  b5 {[%clk 0:02:53]} 8. Bg2 {[%clk 0:02:55]}  Bb7 {[%clk 0:02:52]} 9. g5 {[%clk 0:02:53]}  Nfd7 {[%clk 0:02:50]} 10. O-O {[%clk 0:02:46]}  Nc6 {[%clk 0:02:48]} 11. Nxc6 {[%clk 0:02:42]}  Bxc6 {[%clk 0:02:47]} 12. Ne2 {[%clk 0:02:43]}  Be7 {[%clk 0:02:43]} 13. f4 {[%clk 0:02:41]}  Qb6+ {[%clk 0:02:41]} 14. Kh1 {[%clk 0:02:40]}  Qb7 {[%clk 0:02:41]} 15. Ng3 {[%clk 0:02:39]}  Rd8 {[%clk 0:02:32]} 16. Qe2 {[%clk 0:02:36]}  O-O {[%clk 0:02:28]} 17. f5 {[%clk 0:02:34]}  Rfe8 {[%clk 0:02:10]} 18. f6 {[%clk 0:02:26]}  Bf8 {[%clk 0:02:06]} 19. fxg7 {[%clk 0:02:21]}  Bxg7 {[%clk 0:02:06]} 20. Nh5 {[%clk 0:02:21]}  Be5 {[%clk 0:02:01]} 21. Nf6+ {[%clk 0:02:20]}  Nxf6 {[%clk 0:01:58]} 22. gxf6 {[%clk 0:02:21]}  Kh8 {[%clk 0:01:56]} 23. Bh6 {[%clk 0:02:19]}  Rg8 {[%clk 0:01:50]} 24. Bg7+ {[%clk 0:02:13]}  Rxg7 {[%clk 0:01:49]} 25. fxg7+ {[%clk 0:02:14]}  Bxg7 {[%clk 0:01:49]} 26. c3 {[%clk 0:02:08]}  d5 {[%clk 0:01:47]} 27. exd5 {[%clk 0:02:05]}  Bxd5 {[%clk 0:01:48]} 28. Bxd5 {[%clk 0:02:04]}  Qxd5+ {[%clk 0:01:48]} 29. Qg2 {[%clk 0:02:04]}  Qh5 {[%clk 0:01:40]} 30. Qg4 {[%clk 0:01:50]}  Qd5+ {[%clk 0:01:27]} 31. Qf3 {[%clk 0:01:46]}  Qxf3+ {[%clk 0:01:19]} 32. Rxf3 {[%clk 0:01:47]}  Kg8 {[%clk 0:01:17]} 33. Rf2 {[%clk 0:01:41]}  Rd3 {[%clk 0:01:15]} 34. Kg2 {[%clk 0:01:19]}  f5 {[%clk 0:01:11]} 35. a4 {[%clk 0:01:03]}  Kf7 {[%clk 0:00:56]} 36. axb5 {[%clk 0:01:03]}  axb5 {[%clk 0:00:57]} 37. Ra5 {[%clk 0:01:00]}  Rd5 {[%clk 0:00:51]} 38. Kf1 {[%clk 0:00:56]}  Be5 {[%clk 0:00:45]} 39. Ke2 {[%clk 0:00:54]}  Kf6 {[%clk 0:00:43]} 40. Rf1 {[%clk 0:00:51]}  Bc7 {[%clk 0:00:39]} 41. Ra7 {[%clk 0:00:49]}  Re5+ {[%clk 0:00:34]} 42. Kd3 {[%clk 0:00:46]}  Rd5+ {[%clk 0:00:33]} 43. Kc2 {[%clk 0:00:46]}  Bd6 {[%clk 0:00:26]} 44. Rxh7 {[%clk 0:00:45]}  f4 {[%clk 0:00:24]} 45. Rd1 {[%clk 0:00:43]}  Rxd1 {[%clk 0:00:20]} 46. Kxd1 {[%clk 0:00:44]}  e5 {[%clk 0:00:21]} 47. Ke2 {[%clk 0:00:44]}  e4 {[%clk 0:00:20]} 48. Rb7 {[%clk 0:00:40]}  Bc5 {[%clk 0:00:12]} 49. Rxb5 {[%clk 0:00:39]}  f3+ {[%clk 0:00:12]} 50. Kf1 {[%clk 0:00:38]}  Be3 {[%clk 0:00:10]} 51. c4 {[%clk 0:00:25]}  Bd4 {[%clk 0:00:06]} 52. Rd5 {[%clk 0:00:22]}  Bxb2 {[%clk 0:00:06]} 53. Kf2 {[%clk 0:00:21]}  Ke6 {[%clk 0:00:05]} 54. Ke3 {[%clk 0:00:20]}  f2 {[%clk 0:00:03]} 55. Kxf2 {[%clk 0:00:20]}  Be5 {[%clk 0:00:03]} 56. Ke3 {[%clk 0:00:19]}  Bf6 {[%clk 0:00:02]} 57. Kxe4 {[%clk 0:00:19]} 1-0


[Site "https://www.chess.com"]

[Event "Titled Tuesday Blitz November 08 Early 2022"]
[White "Sarkar, Justin"]
[Black "Bagwe Gaurang"]
[WhiteFideId "2010011"]
[BlackFideId "45039895"]
[WhiteElo "2239"]
[BlackElo "1847"]
[Result "1-0"]
[Round "07"]
[TimeControl "180+1"]
[Date "2022.11.09"]
[WhiteClock "0:00:02"]
[BlackClock "0:00:21"]

1. d4 {[%clk 0:02:51]}  d5 {[%clk 0:02:59]} 2. c4 {[%clk 0:02:50]}  e6 {[%clk 0:02:58]} 3. Nc3 {[%clk 0:02:44]}  Nf6 {[%clk 0:02:57]} 4. Nf3 {[%clk 0:02:32]}  c5 {[%clk 0:02:57]} 5. cxd5 {[%clk 0:02:30]}  exd5 {[%clk 0:02:57]} 6. Bg5 {[%clk 0:02:27]}  Be6 {[%clk 0:02:54]} 7. e3 {[%clk 0:02:20]}  Nbd7 {[%clk 0:02:52]} 8. Be2 {[%clk 0:02:00]}  h6 {[%clk 0:02:52]} 9. Bh4 {[%clk 0:01:57]}  g5 {[%clk 0:02:52]} 10. Bg3 {[%clk 0:01:56]}  Bg7 {[%clk 0:02:52]} 11. O-O {[%clk 0:01:43]}  cxd4 {[%clk 0:02:49]} 12. Nxd4 {[%clk 0:01:42]}  O-O {[%clk 0:02:47]} 13. h4 {[%clk 0:01:31]}  Nc5 {[%clk 0:02:43]} 14. hxg5 {[%clk 0:01:26]}  hxg5 {[%clk 0:02:44]} 15. Ndb5 {[%clk 0:01:15]}  Nfe4 {[%clk 0:02:38]} 16. Bh2 {[%clk 0:00:58]}  Rc8 {[%clk 0:02:31]} 17. Nxa7 {[%clk 0:00:39]}  Nxc3 {[%clk 0:02:26]} 18. bxc3 {[%clk 0:00:37]}  Ne4 {[%clk 0:02:14]} 19. Nxc8 {[%clk 0:00:29]}  Nxc3 {[%clk 0:02:14]} 20. Qc2 {[%clk 0:00:22]}  Nxe2+ {[%clk 0:02:13]} 21. Qxe2 {[%clk 0:00:21]}  Bxa1 {[%clk 0:02:14]} 22. Rxa1 {[%clk 0:00:18]}  Qf6 {[%clk 0:02:10]} 23. Rc1 {[%clk 0:00:10]}  Rxc8 {[%clk 0:02:09]} 24. Rxc8+ {[%clk 0:00:09]}  Bxc8 {[%clk 0:02:10]} 25. Bg3 {[%clk 0:00:09]}  Bf5 {[%clk 0:01:33]} 26. Qh5 {[%clk 0:00:09]}  Be4 {[%clk 0:01:28]} 27. Kh2 {[%clk 0:00:08]}  b5 {[%clk 0:01:23]} 28. f3 {[%clk 0:00:08]}  Bf5 {[%clk 0:01:17]} 29. f4 {[%clk 0:00:07]}  g4 {[%clk 0:01:14]} 30. Bh4 {[%clk 0:00:07]}  Qe6 {[%clk 0:01:10]} 31. Qg5+ {[%clk 0:00:06]}  Bg6 {[%clk 0:01:10]} 32. f5 {[%clk 0:00:05]}  Qxf5 {[%clk 0:01:09]} 33. Qxf5 {[%clk 0:00:05]}  Bxf5 {[%clk 0:01:10]} 34. Kg3 {[%clk 0:00:06]}  Kf8 {[%clk 0:01:09]} 35. Kf4 {[%clk 0:00:06]}  Be6 {[%clk 0:01:06]} 36. Bf6 {[%clk 0:00:06]}  Ke8 {[%clk 0:01:06]} 37. g3 {[%clk 0:00:06]}  Kd7 {[%clk 0:01:05]} 38. Ke5 {[%clk 0:00:07]}  d4 {[%clk 0:01:05]} 39. exd4 {[%clk 0:00:06]}  Bxa2 {[%clk 0:01:06]} 40. d5 {[%clk 0:00:06]}  Kc7 {[%clk 0:01:05]} 41. Kd4 {[%clk 0:00:06]}  Kb6 {[%clk 0:01:03]} 42. Bd8+ {[%clk 0:00:05]}  Kb7 {[%clk 0:01:02]} 43. Kc5 {[%clk 0:00:05]}  Kc8 {[%clk 0:01:01]} 44. Bg5 {[%clk 0:00:05]}  Bc4 {[%clk 0:00:59]} 45. Bf4 {[%clk 0:00:04]}  Kd7 {[%clk 0:00:59]} 46. Bg5 {[%clk 0:00:04]}  Kc7 {[%clk 0:00:58]} 47. Bf4+ {[%clk 0:00:04]}  Kd7 {[%clk 0:00:58]} 48. Bg5 {[%clk 0:00:04]}  Be2 {[%clk 0:00:59]} 49. Bf4 {[%clk 0:00:04]}  Ke7 {[%clk 0:00:59]} 50. Bg5+ {[%clk 0:00:03]}  f6 {[%clk 0:00:59]} 51. Bf4 {[%clk 0:00:03]}  Kf7 {[%clk 0:01:00]} 52. d6 {[%clk 0:00:03]}  Ke8 {[%clk 0:00:52]} 53. Kc6 {[%clk 0:00:01]}  Kd8 {[%clk 0:00:39]} 54. d7 {[%clk 0:00:01]}  Bf3+ {[%clk 0:00:38]} 55. Kd6 {[%clk 0:00:01]}  b4 {[%clk 0:00:33]} 56. Be3 {[%clk 0:00:01]}  b3 {[%clk 0:00:21]} 57. Bb6# {[%clk 0:00:02]} 1-0


[Site "https://www.chess.com"]

[Event "Titled Tuesday Blitz November 08 Early 2022"]
[White "Shapiro, Daniel"]
[Black "Simonovic, Miroslav"]
[WhiteFideId "2001780"]
[BlackFideId "919152"]
[WhiteElo "2310"]
[BlackElo "2043"]
[Result "0-1"]
[Round "07"]
[TimeControl "180+1"]
[Date "2022.11.09"]
[WhiteClock "0:00:01"]
[BlackClock "0:00:05"]

1. d4 {[%clk 0:03:00]}  Nf6 {[%clk 0:02:58]} 2. c4 {[%clk 0:02:58]}  c5 {[%clk 0:02:59]} 3. d5 {[%clk 0:02:58]}  b5 {[%clk 0:02:59]} 4. cxb5 {[%clk 0:02:58]}  a6 {[%clk 0:02:59]} 5. e3 {[%clk 0:02:58]}  axb5 {[%clk 0:02:59]} 6. Bxb5 {[%clk 0:02:57]}  Qa5+ {[%clk 0:02:52]} 7. Nc3 {[%clk 0:02:57]}  Bb7 {[%clk 0:02:52]} 8. Ne2 {[%clk 0:02:54]}  Nxd5 {[%clk 0:02:51]} 9. O-O {[%clk 0:02:54]}  Nxc3 {[%clk 0:02:50]} 10. Nxc3 {[%clk 0:02:54]}  g6 {[%clk 0:02:43]} 11. a4 {[%clk 0:02:52]}  Bg7 {[%clk 0:02:42]} 12. Bd2 {[%clk 0:02:51]}  Qc7 {[%clk 0:02:36]} 13. e4 {[%clk 0:02:49]}  e6 {[%clk 0:02:32]} 14. Bc4 {[%clk 0:02:32]}  O-O {[%clk 0:02:31]} 15. Re1 {[%clk 0:02:19]}  Rd8 {[%clk 0:02:22]} 16. Qf3 {[%clk 0:02:02]}  f5 {[%clk 0:02:19]} 17. Bg5 {[%clk 0:01:47]}  Rf8 {[%clk 0:01:57]} 18. Qh3 {[%clk 0:01:05]}  fxe4 {[%clk 0:01:34]} 19. Nb5 {[%clk 0:01:01]}  Qe5 {[%clk 0:01:24]} 20. Be7 {[%clk 0:00:56]}  Rf7 {[%clk 0:01:10]} 21. Bd6 {[%clk 0:00:53]}  Qxb2 {[%clk 0:01:06]} 22. Qg3 {[%clk 0:00:43]}  Na6 {[%clk 0:00:53]} 23. Rab1 {[%clk 0:00:37]}  Qf6 {[%clk 0:00:49]} 24. Nc7 {[%clk 0:00:29]}  Nxc7 {[%clk 0:00:48]} 25. Rxb7 {[%clk 0:00:29]}  Nd5 {[%clk 0:00:41]} 26. Bb5 {[%clk 0:00:24]}  e5 {[%clk 0:00:30]} 27. Bxc5 {[%clk 0:00:22]}  Rc8 {[%clk 0:00:28]} 28. Be3 {[%clk 0:00:16]}  Nxe3 {[%clk 0:00:26]} 29. Qxe3 {[%clk 0:00:16]}  d5 {[%clk 0:00:25]} 30. Rf1 {[%clk 0:00:11]}  Rxb7 {[%clk 0:00:23]} 31. Qe2 {[%clk 0:00:09]}  Rcb8 {[%clk 0:00:22]} 32. h3 {[%clk 0:00:07]}  Qd6 {[%clk 0:00:21]} 33. Kh2 {[%clk 0:00:07]}  h6 {[%clk 0:00:18]} 34. Rd1 {[%clk 0:00:06]}  Kh7 {[%clk 0:00:17]} 35. Qa2 {[%clk 0:00:06]}  d4 {[%clk 0:00:16]} 36. Be2 {[%clk 0:00:05]}  d3 {[%clk 0:00:16]} 37. Bf1 {[%clk 0:00:04]}  e3 {[%clk 0:00:15]} 38. Rxd3 {[%clk 0:00:03]}  Qb6 {[%clk 0:00:15]} 39. Rxe3 {[%clk 0:00:03]}  Qb1 {[%clk 0:00:13]} 40. Qe6 {[%clk 0:00:02]}  Qxf1 {[%clk 0:00:13]} 41. Rg3 {[%clk 0:00:02]}  Qd3 {[%clk 0:00:11]} 42. Rxd3 {[%clk 0:00:01]}  Rb6 {[%clk 0:00:10]} 43. Rd6 {[%clk 0:00:01]}  Rxd6 {[%clk 0:00:10]} 44. Qxd6 {[%clk 0:00:01]}  Ra8 {[%clk 0:00:10]} 45. Qd5 {[%clk 0:00:02]}  Rxa4 {[%clk 0:00:10]} 46. Qc6 {[%clk 0:00:03]}  Rd4 {[%clk 0:00:10]} 47. Qe6 {[%clk 0:00:03]}  h5 {[%clk 0:00:10]} 48. Qe7 {[%clk 0:00:04]}  Rd2 {[%clk 0:00:10]} 49. Qg5 {[%clk 0:00:04]}  Rxf2 {[%clk 0:00:10]} 50. Qg3 {[%clk 0:00:05]}  Rf5 {[%clk 0:00:11]} 51. Qe3 {[%clk 0:00:05]}  Rf4 {[%clk 0:00:10]} 52. Qe2 {[%clk 0:00:06]}  Rf5 {[%clk 0:00:10]} 53. Kg3 {[%clk 0:00:06]}  Rf7 {[%clk 0:00:10]} 54. Kh2 {[%clk 0:00:06]}  Re7 {[%clk 0:00:10]} 55. h4 {[%clk 0:00:07]}  Bf6 {[%clk 0:00:10]} 56. g3 {[%clk 0:00:07]}  Kg7 {[%clk 0:00:11]} 57. Kg2 {[%clk 0:00:08]}  e4 {[%clk 0:00:11]} 58. Kf2 {[%clk 0:00:08]}  e3+ {[%clk 0:00:11]} 59. Kg2 {[%clk 0:00:08]}  Bd4 {[%clk 0:00:10]} 60. Kf3 {[%clk 0:00:09]}  Rf7+ {[%clk 0:00:10]} 61. Ke4 {[%clk 0:00:09]}  Rf2 {[%clk 0:00:11]} 62. Qd3 {[%clk 0:00:09]}  e2 {[%clk 0:00:11]} 63. Qd2 {[%clk 0:00:08]}  Bb6 {[%clk 0:00:09]} 64. Qd7+ {[%clk 0:00:08]}  Kh6 {[%clk 0:00:09]} 65. Qd2+ {[%clk 0:00:08]}  Kh7 {[%clk 0:00:09]} 66. Qd7+ {[%clk 0:00:08]}  Kg8 {[%clk 0:00:09]} 67. Qe8+ {[%clk 0:00:07]}  Rf8 {[%clk 0:00:09]} 68. Qe6+ {[%clk 0:00:06]}  Kg7 {[%clk 0:00:09]} 69. Kd3 {[%clk 0:00:06]}  Bf2 {[%clk 0:00:05]} 70. Kxe2 {[%clk 0:00:05]}  Bxg3 {[%clk 0:00:04]} 71. Qe7+ {[%clk 0:00:02]}  Rf7 {[%clk 0:00:04]} 72. Qg5 {[%clk 0:00:03]}  Bd6 {[%clk 0:00:04]} 73. Kd3 {[%clk 0:00:02]}  Be7 {[%clk 0:00:04]} 74. Qg3 {[%clk 0:00:01]}  Bf6 {[%clk 0:00:05]} 0-1


[Site "https://www.chess.com"]

[Event "Titled Tuesday Blitz November 08 Early 2022"]
[White "Shuvalov, Evgenij"]
[Black "Kopylov, Alexander A."]
[WhiteFideId "4187237"]
[BlackFideId "4164857"]
[WhiteElo "2049"]
[BlackElo "2436"]
[Result "1/2-1/2"]
[Round "07"]
[TimeControl "180+1"]
[Date "2022.11.08"]
[WhiteClock "0:00:44"]
[BlackClock "0:00:36"]

1. d4 {[%clk 0:03:00]}  Nf6 {[%clk 0:02:59]} 2. c4 {[%clk 0:03:00]}  e6 {[%clk 0:02:58]} 3. Nf3 {[%clk 0:03:00]}  d5 {[%clk 0:02:58]} 4. cxd5 {[%clk 0:02:54]}  exd5 {[%clk 0:02:58]} 5. Nc3 {[%clk 0:02:54]}  Bd6 {[%clk 0:02:57]} 6. Bg5 {[%clk 0:02:54]}  c6 {[%clk 0:02:55]} 7. Qc2 {[%clk 0:02:53]}  O-O {[%clk 0:02:55]} 8. e3 {[%clk 0:02:53]}  Bg4 {[%clk 0:02:52]} 9. Ne5 {[%clk 0:02:51]}  Bh5 {[%clk 0:02:50]} 10. Bd3 {[%clk 0:02:48]}  Bg6 {[%clk 0:02:36]} 11. Bxg6 {[%clk 0:02:44]}  fxg6 {[%clk 0:02:36]} 12. h3 {[%clk 0:02:36]}  Nbd7 {[%clk 0:02:36]} 13. f4 {[%clk 0:02:34]}  Qa5 {[%clk 0:02:02]} 14. O-O {[%clk 0:02:27]}  Bb4 {[%clk 0:02:01]} 15. Ne2 {[%clk 0:02:17]}  Nxe5 {[%clk 0:01:57]} 16. fxe5 {[%clk 0:01:59]}  Ne4 {[%clk 0:01:57]} 17. Bf4 {[%clk 0:01:59]}  g5 {[%clk 0:01:49]} 18. Bh2 {[%clk 0:01:56]}  Bd2 {[%clk 0:01:49]} 19. Qd3 {[%clk 0:01:50]}  Qb5 {[%clk 0:01:44]} 20. Qxb5 {[%clk 0:01:36]}  Bxe3+ {[%clk 0:01:43]} 21. Kh1 {[%clk 0:01:34]}  cxb5 {[%clk 0:01:44]} 22. Bg1 {[%clk 0:01:30]}  Bxg1 {[%clk 0:01:37]} 23. Kxg1 {[%clk 0:01:31]}  Rac8 {[%clk 0:01:32]} 24. Rac1 {[%clk 0:01:28]}  Rxf1+ {[%clk 0:01:31]} 25. Kxf1 {[%clk 0:01:27]}  Rc4 {[%clk 0:01:10]} 26. b3 {[%clk 0:01:23]}  Ng3+ {[%clk 0:01:05]} 27. Ke1 {[%clk 0:01:12]}  Nxe2 {[%clk 0:00:57]} 28. Rxc4 {[%clk 0:01:00]}  bxc4 {[%clk 0:00:54]} 29. Kxe2 {[%clk 0:00:59]}  cxb3 {[%clk 0:00:36]} 30. axb3 {[%clk 0:01:00]}  a5 {[%clk 0:00:36]} 31. g4 {[%clk 0:00:58]}  b5 {[%clk 0:00:35]} 32. Kd3 {[%clk 0:00:58]}  Kf7 {[%clk 0:00:35]} 33. Kc3 {[%clk 0:00:58]}  Ke6 {[%clk 0:00:35]} 34. Kb2 {[%clk 0:00:58]}  Kd7 {[%clk 0:00:34]} 35. Ka3 {[%clk 0:00:59]}  Kc6 {[%clk 0:00:34]} 36. Kb2 {[%clk 0:00:58]}  h6 {[%clk 0:00:34]} 37. Kc3 {[%clk 0:00:58]}  Kb6 {[%clk 0:00:34]} 38. Kb2 {[%clk 0:00:58]}  Kc6 {[%clk 0:00:34]} 39. Ka3 {[%clk 0:00:59]}  Kd7 {[%clk 0:00:34]} 40. b4 {[%clk 0:00:43]}  a4 {[%clk 0:00:33]} 41. Ka2 {[%clk 0:00:43]}  Ke7 {[%clk 0:00:33]} 42. Ka3 {[%clk 0:00:43]}  g6 {[%clk 0:00:33]} 43. Ka2 {[%clk 0:00:43]}  h5 {[%clk 0:00:34]} 44. Ka3 {[%clk 0:00:43]}  h4 {[%clk 0:00:34]} 45. Ka2 {[%clk 0:00:43]}  Ke6 {[%clk 0:00:33]} 46. Ka3 {[%clk 0:00:44]}  Ke7 {[%clk 0:00:34]} 47. Ka2 {[%clk 0:00:44]}  Ke6 {[%clk 0:00:35]} 48. Ka3 {[%clk 0:00:44]}  Ke7 {[%clk 0:00:36]} 1/2-1/2


[Site "https://www.chess.com"]

[Event "Titled Tuesday Blitz November 08 Early 2022"]
[White "Sovetbekova, Nurai"]
[Black "Lohani, Sujana"]
[WhiteFideId "13801910"]
[BlackFideId "12311987"]
[WhiteElo "1925"]
[BlackElo "1691"]
[Result "1-0"]
[Round "07"]
[TimeControl "180+1"]
[Date "2022.11.09"]
[WhiteClock "0:00:07"]
[BlackClock "0:00:02"]

1. d4 {[%clk 0:03:00]}  g6 {[%clk 0:02:26]} 2. c4 {[%clk 0:03:00]}  Bg7 {[%clk 0:02:27]} 3. Nf3 {[%clk 0:02:58]}  d6 {[%clk 0:02:28]} 4. g3 {[%clk 0:02:56]}  Nf6 {[%clk 0:02:28]} 5. Bg2 {[%clk 0:02:56]}  O-O {[%clk 0:02:29]} 6. O-O {[%clk 0:02:56]}  c6 {[%clk 0:02:30]} 7. Nc3 {[%clk 0:02:56]}  Nbd7 {[%clk 0:02:30]} 8. e4 {[%clk 0:02:56]}  e5 {[%clk 0:02:30]} 9. h3 {[%clk 0:02:55]}  h6 {[%clk 0:02:25]} 10. Be3 {[%clk 0:02:53]}  Kh7 {[%clk 0:02:23]} 11. Qd2 {[%clk 0:02:51]}  Qe7 {[%clk 0:02:22]} 12. b4 {[%clk 0:02:40]}  exd4 {[%clk 0:02:18]} 13. Bxd4 {[%clk 0:02:39]}  Ne5 {[%clk 0:01:54]} 14. Nxe5 {[%clk 0:02:27]}  dxe5 {[%clk 0:01:49]} 15. Bc5 {[%clk 0:02:27]}  Rd8 {[%clk 0:01:28]} 16. Qxh6+ {[%clk 0:02:18]}  Kxh6 {[%clk 0:01:18]} 17. Bxe7 {[%clk 0:02:19]}  Rd4 {[%clk 0:01:11]} 18. Rfd1 {[%clk 0:01:37]}  Rxc4 {[%clk 0:01:03]} 19. Rac1 {[%clk 0:01:35]}  Be6 {[%clk 0:00:58]} 20. Bc5 {[%clk 0:01:29]}  b6 {[%clk 0:00:55]} 21. Be7 {[%clk 0:01:04]}  Ng8 {[%clk 0:00:53]} 22. Bd6 {[%clk 0:01:02]}  Rd8 {[%clk 0:00:48]} 23. f4 {[%clk 0:00:52]}  Rd4 {[%clk 0:00:46]} 24. fxe5 {[%clk 0:00:39]}  Rxd1+ {[%clk 0:00:27]} 25. Rxd1 {[%clk 0:00:40]}  Rd7 {[%clk 0:00:21]} 26. Kf2 {[%clk 0:00:35]}  Kh7 {[%clk 0:00:19]} 27. Ke2 {[%clk 0:00:32]}  Nh6 {[%clk 0:00:19]} 28. Rd2 {[%clk 0:00:30]}  Ng8 {[%clk 0:00:17]} 29. Nd1 {[%clk 0:00:28]}  Bh6 {[%clk 0:00:17]} 30. Rc2 {[%clk 0:00:26]}  c5 {[%clk 0:00:12]} 31. bxc5 {[%clk 0:00:24]}  bxc5 {[%clk 0:00:11]} 32. Rxc5 {[%clk 0:00:17]}  Rb7 {[%clk 0:00:10]} 33. Rc2 {[%clk 0:00:15]}  Ne7 {[%clk 0:00:10]} 34. Nc3 {[%clk 0:00:13]}  Nc8 {[%clk 0:00:09]} 35. Nd5 {[%clk 0:00:12]}  Nb6 {[%clk 0:00:08]} 36. Nf6+ {[%clk 0:00:10]}  Kg7 {[%clk 0:00:07]} 37. Ne8+ {[%clk 0:00:09]}  Kg8 {[%clk 0:00:06]} 38. Nc7 {[%clk 0:00:10]}  Bc8 {[%clk 0:00:03]} 39. Ke1 {[%clk 0:00:07]}  Bf8 {[%clk 0:00:02]} 40. Bf1 {[%clk 0:00:07]} 1-0


[Site "https://www.chess.com"]

[Event "Titled Tuesday Blitz November 08 Early 2022"]
[White "Tari, Aryan"]
[Black "Shipov, Sergei"]
[WhiteFideId "1510045"]
[BlackFideId "4113624"]
[WhiteElo "2612"]
[BlackElo "2796"]
[Result "1-0"]
[Round "07"]
[TimeControl "180+1"]
[Date "2022.11.08"]
[WhiteClock "0:00:07"]
[BlackClock "0:00:24"]

1. e4 {[%clk 0:02:43]}  e6 {[%clk 0:02:44]} 2. d4 {[%clk 0:02:41]}  d5 {[%clk 0:02:45]} 3. Nc3 {[%clk 0:02:42]}  Bb4 {[%clk 0:02:45]} 4. e5 {[%clk 0:02:35]}  c5 {[%clk 0:02:45]} 5. Bd2 {[%clk 0:02:35]}  Ne7 {[%clk 0:02:44]} 6. a3 {[%clk 0:02:33]}  Bxc3 {[%clk 0:02:44]} 7. Bxc3 {[%clk 0:02:34]}  b6 {[%clk 0:02:43]} 8. f4 {[%clk 0:02:15]}  O-O {[%clk 0:02:42]} 9. Nf3 {[%clk 0:02:15]}  Ba6 {[%clk 0:02:29]} 10. Bxa6 {[%clk 0:02:15]}  Nxa6 {[%clk 0:02:25]} 11. O-O {[%clk 0:02:06]}  Nb8 {[%clk 0:02:22]} 12. b4 {[%clk 0:01:55]}  Nf5 {[%clk 0:02:12]} 13. Qd3 {[%clk 0:01:49]}  Nc6 {[%clk 0:01:54]} 14. bxc5 {[%clk 0:01:30]}  bxc5 {[%clk 0:01:54]} 15. dxc5 {[%clk 0:01:30]}  Qe7 {[%clk 0:01:53]} 16. Qb5 {[%clk 0:01:15]}  Rfc8 {[%clk 0:01:52]} 17. Rab1 {[%clk 0:01:11]}  h6 {[%clk 0:01:34]} 18. Kh1 {[%clk 0:00:43]}  Rab8 {[%clk 0:01:30]} 19. Qd3 {[%clk 0:00:42]}  Qxc5 {[%clk 0:01:30]} 20. Bd2 {[%clk 0:00:41]}  Ncd4 {[%clk 0:01:21]} 21. Nxd4 {[%clk 0:00:39]}  Qxd4 {[%clk 0:01:21]} 22. Rxb8 {[%clk 0:00:29]}  Rxb8 {[%clk 0:01:20]} 23. g4 {[%clk 0:00:30]}  Qxd3 {[%clk 0:01:05]} 24. cxd3 {[%clk 0:00:31]}  Nd4 {[%clk 0:00:57]} 25. Be3 {[%clk 0:00:31]}  Nc2 {[%clk 0:00:57]} 26. Bxa7 {[%clk 0:00:30]}  Rb3 {[%clk 0:00:57]} 27. a4 {[%clk 0:00:25]}  Rxd3 {[%clk 0:00:49]} 28. a5 {[%clk 0:00:21]}  Ra3 {[%clk 0:00:42]} 29. Bb6 {[%clk 0:00:21]}  h5 {[%clk 0:00:33]} 30. Rc1 {[%clk 0:00:20]}  Ra2 {[%clk 0:00:32]} 31. gxh5 {[%clk 0:00:14]}  d4 {[%clk 0:00:31]} 32. a6 {[%clk 0:00:08]}  Rxa6 {[%clk 0:00:29]} 33. Rxc2 {[%clk 0:00:07]}  Rxb6 {[%clk 0:00:30]} 34. Rc8+ {[%clk 0:00:07]}  Kh7 {[%clk 0:00:29]} 35. Rd8 {[%clk 0:00:08]}  Kh6 {[%clk 0:00:24]} 36. Rh8# {[%clk 0:00:07]} 1-0


[Site "https://www.chess.com"]

[Event "Titled Tuesday Blitz November 08 Early 2022"]
[White "Tasev, Dejan"]
[Black "Ahn, Hongjin"]
[WhiteFideId "936618"]
[BlackFideId "13201492"]
[WhiteElo "2256"]
[BlackElo "2182"]
[Result "1-0"]
[Round "07"]
[TimeControl "180+1"]
[Date "2022.11.09"]
[WhiteClock "0:00:19"]
[BlackClock "0:01:14"]

1. e4 {[%clk 0:03:00]}  c5 {[%clk 0:02:50]} 2. Nf3 {[%clk 0:03:00]}  Nc6 {[%clk 0:02:50]} 3. Nc3 {[%clk 0:02:59]}  e6 {[%clk 0:02:50]} 4. d4 {[%clk 0:02:59]}  cxd4 {[%clk 0:02:51]} 5. Nxd4 {[%clk 0:02:58]}  a6 {[%clk 0:02:52]} 6. Be2 {[%clk 0:02:57]}  Nf6 {[%clk 0:02:52]} 7. O-O {[%clk 0:02:55]}  Qc7 {[%clk 0:02:52]} 8. Be3 {[%clk 0:02:54]}  Be7 {[%clk 0:02:52]} 9. f4 {[%clk 0:02:52]}  d6 {[%clk 0:02:52]} 10. Kh1 {[%clk 0:02:51]}  O-O {[%clk 0:02:51]} 11. Bf3 {[%clk 0:02:46]}  Bd7 {[%clk 0:02:49]} 12. Qe1 {[%clk 0:02:44]}  Nxd4 {[%clk 0:02:46]} 13. Bxd4 {[%clk 0:02:44]}  Bc6 {[%clk 0:02:47]} 14. Qg3 {[%clk 0:02:44]}  Kh8 {[%clk 0:02:42]} 15. Rad1 {[%clk 0:02:36]}  Ne8 {[%clk 0:02:38]} 16. e5 {[%clk 0:02:31]}  Bxf3 {[%clk 0:02:27]} 17. Rxf3 {[%clk 0:02:26]}  d5 {[%clk 0:02:27]} 18. f5 {[%clk 0:02:21]}  exf5 {[%clk 0:02:25]} 19. Rxf5 {[%clk 0:02:15]}  Rd8 {[%clk 0:02:23]} 20. Rdf1 {[%clk 0:02:07]}  Bc5 {[%clk 0:02:18]} 21. Ne2 {[%clk 0:01:58]}  Bxd4 {[%clk 0:02:04]} 22. Nxd4 {[%clk 0:01:58]}  Qc4 {[%clk 0:02:05]} 23. c3 {[%clk 0:01:55]}  Nc7 {[%clk 0:02:03]} 24. b3 {[%clk 0:01:42]}  Qc5 {[%clk 0:01:59]} 25. Rxf7 {[%clk 0:01:34]}  Rg8 {[%clk 0:01:48]} 26. Nf5 {[%clk 0:01:17]}  Ne6 {[%clk 0:01:43]} 27. Ne7 {[%clk 0:01:04]}  Rge8 {[%clk 0:01:37]} 28. Nf5 {[%clk 0:00:48]}  Rf8 {[%clk 0:01:30]} 29. Nxg7 {[%clk 0:00:44]}  Rxf7 {[%clk 0:01:23]} 30. Rxf7 {[%clk 0:00:43]}  Rg8 {[%clk 0:01:23]} 31. Nxe6 {[%clk 0:00:36]}  Rxg3 {[%clk 0:01:20]} 32. Nxc5 {[%clk 0:00:36]}  Rxc3 {[%clk 0:01:20]} 33. h3 {[%clk 0:00:27]}  Rxc5 {[%clk 0:01:20]} 34. e6 {[%clk 0:00:27]}  Kg8 {[%clk 0:01:19]} 35. Rxb7 {[%clk 0:00:26]}  Rc1+ {[%clk 0:01:19]} 36. Kh2 {[%clk 0:00:26]}  Re1 {[%clk 0:01:20]} 37. Rd7 {[%clk 0:00:25]}  Rxe6 {[%clk 0:01:19]} 38. Rxd5 {[%clk 0:00:26]}  Re2 {[%clk 0:01:20]} 39. Ra5 {[%clk 0:00:25]}  Re6 {[%clk 0:01:20]} 40. b4 {[%clk 0:00:25]}  Kg7 {[%clk 0:01:20]} 41. a3 {[%clk 0:00:24]}  h6 {[%clk 0:01:19]} 42. a4 {[%clk 0:00:25]}  Rb6 {[%clk 0:01:19]} 43. b5 {[%clk 0:00:25]}  axb5 {[%clk 0:01:19]} 44. axb5 {[%clk 0:00:25]}  Kf8 {[%clk 0:01:19]} 45. Kg3 {[%clk 0:00:25]}  Kf7 {[%clk 0:01:19]} 46. Kf4 {[%clk 0:00:25]}  Ke7 {[%clk 0:01:18]} 47. Ke5 {[%clk 0:00:26]}  Rg6 {[%clk 0:01:19]} 48. g4 {[%clk 0:00:25]}  h5 {[%clk 0:01:18]} 49. Kf5 {[%clk 0:00:22]}  Rg8 {[%clk 0:01:15]} 50. g5 {[%clk 0:00:20]}  h4 {[%clk 0:01:14]} 51. Ra7+ {[%clk 0:00:18]}  Kd6 {[%clk 0:01:14]} 52. g6 {[%clk 0:00:18]}  Kc5 {[%clk 0:01:15]} 53. Rb7 {[%clk 0:00:17]}  Rf8+ {[%clk 0:01:12]} 54. Kg5 {[%clk 0:00:17]}  Rf3 {[%clk 0:01:12]} 55. Kxh4 {[%clk 0:00:17]}  Rf4+ {[%clk 0:01:13]} 56. Kg5 {[%clk 0:00:17]}  Rf3 {[%clk 0:01:13]} 57. h4 {[%clk 0:00:18]}  Rg3+ {[%clk 0:01:14]} 58. Kh6 {[%clk 0:00:18]}  Rg4 {[%clk 0:01:14]} 59. h5 {[%clk 0:00:19]} 1-0


[Site "https://www.chess.com"]